[Event "Early-Titled-Tuesday-Blitz-January-30-2024"]
[Site "Chess.com"]
[Date "2024.01.30"]
[Round "10"]
[White "CaspiIsrael"]
[Black "Perecke"]
[Result "0-1"]
[WhiteElo "2731"]
[BlackElo "2587"]
[TimeControl "180+1"]
[EndTime "10:02:35 PST"]
[Termination "Perecke won by checkmate"]

1. d4 {[%clk 0:03:00.9]} 1... Nf6 {[%clk 0:02:59.4]} 2. c4 {[%clk 0:03:01.2]}
2... e6 {[%clk 0:03:00.3]} 3. Nc3 {[%clk 0:03:01.1]} 3... d5 {[%clk 0:03:00.9]}
4. Nf3 {[%clk 0:02:59]} 4... dxc4 {[%clk 0:03:00.7]} 5. e4 {[%clk 0:02:57.9]}
5... b5 {[%clk 0:03:00.7]} 6. e5 {[%clk 0:02:57.2]} 6... Nd5 {[%clk 0:03:01]} 7.
Nxb5 {[%clk 0:02:57.9]} 7... Nb6 {[%clk 0:03:01.2]} 8. Nc3 {[%clk 0:02:53.5]}
8... Nc6 {[%clk 0:02:57.6]} 9. Be2 {[%clk 0:02:53.5]} 9... Be7 {[%clk
0:02:57.5]} 10. Qd2 {[%clk 0:02:53.2]} 10... O-O {[%clk 0:02:57.2]} 11. Qf4
{[%clk 0:02:53.9]} 11... Bb7 {[%clk 0:02:56.4]} 12. Qg4 {[%clk 0:02:53.9]} 12...
Kh8 {[%clk 0:02:55.9]} 13. h4 {[%clk 0:02:52.8]} 13... Nb4 {[%clk 0:02:55.1]}
14. Kf1 {[%clk 0:02:41.1]} 14... Rb8 {[%clk 0:02:50.9]} 15. Bg5 {[%clk
0:02:38.8]} 15... Nd3 {[%clk 0:02:41.1]} 16. b3 {[%clk 0:02:29.5]} 16... Nd5
{[%clk 0:02:15.4]} 17. bxc4 {[%clk 0:02:16.5]} 17... Nxe5 {[%clk 0:01:59.4]} 18.
Nxe5 {[%clk 0:02:10.1]} 18... Nxc3 {[%clk 0:01:59.2]} 19. Bd3 {[%clk 0:02:10.2]}
19... f5 {[%clk 0:01:45.1]} 20. Qh5 {[%clk 0:02:05.5]} 20... Kg8 {[%clk
0:01:44.7]} 21. Re1 {[%clk 0:01:52.7]} 21... Bf6 {[%clk 0:01:26.2]} 22. d5
{[%clk 0:01:33.5]} 22... Nxd5 {[%clk 0:00:58.5]} 23. cxd5 {[%clk 0:01:14]} 23...
Qxd5 {[%clk 0:00:59.4]} 24. Bxf6 {[%clk 0:01:14.2]} 24... gxf6 {[%clk
0:00:52.9]} 25. Re3 {[%clk 0:00:58]} 25... fxe5 {[%clk 0:00:45.5]} 26. Rg3+
{[%clk 0:00:56.9]} 26... Kh8 {[%clk 0:00:41.5]} 27. Qh6 {[%clk 0:00:31.2]} 27...
Rf7 {[%clk 0:00:39.2]} 28. Rhh3 {[%clk 0:00:29.2]} 28... e4 {[%clk 0:00:25.9]}
29. Be2 {[%clk 0:00:18.5]} 29... Ba6 {[%clk 0:00:24.6]} 30. Kg1 {[%clk
0:00:15.6]} 30... Bxe2 {[%clk 0:00:22.3]} 31. Qe3 {[%clk 0:00:15.6]} 31... f4
{[%clk 0:00:17.5]} 32. Qc3+ {[%clk 0:00:14.5]} 32... e5 {[%clk 0:00:18.1]} 33.
Rg5 {[%clk 0:00:14.6]} 33... Qd4 {[%clk 0:00:15.7]} 34. Qc6 {[%clk 0:00:11.9]}
34... Bb5 {[%clk 0:00:10.6]} 35. Rb3 {[%clk 0:00:10.5]} 35... a6 {[%clk
0:00:04.7]} 36. Qe6 {[%clk 0:00:09.3]} 36... Rbf8 {[%clk 0:00:03.8]} 37. Rxe5
{[%clk 0:00:06]} 37... Bd7 {[%clk 0:00:04.1]} 38. Qd5 {[%clk 0:00:05.4]} 38...
Qxd5 {[%clk 0:00:04]} 39. Rxd5 {[%clk 0:00:06.3]} 39... Be6 {[%clk 0:00:04.6]}
40. Re5 {[%clk 0:00:06.3]} 40... Bxb3 {[%clk 0:00:04.8]} 41. axb3 {[%clk
0:00:07.2]} 41... e3 {[%clk 0:00:04.7]} 42. fxe3 {[%clk 0:00:07.6]} 42... fxe3
{[%clk 0:00:05.6]} 43. Rxe3 {[%clk 0:00:08.2]} 43... Rf1+ {[%clk 0:00:06.4]} 44.
Kh2 {[%clk 0:00:08.8]} 44... Rb1 {[%clk 0:00:07.1]} 45. g3 {[%clk 0:00:09]}
45... Rb2+ {[%clk 0:00:07.3]} 46. Kh3 {[%clk 0:00:09.2]} 46... Rb8 {[%clk
0:00:08.1]} 47. Re7 {[%clk 0:00:08.9]} 47... Rb7 {[%clk 0:00:07.7]} 48. Re8+
{[%clk 0:00:08.3]} 48... Kg7 {[%clk 0:00:08.1]} 49. Ra8 {[%clk 0:00:09.1]} 49...
R2xb3 {[%clk 0:00:06.8]} 50. Rxa6 {[%clk 0:00:09.8]} 50... Rc3 {[%clk
0:00:07.4]} 51. h5 {[%clk 0:00:09.7]} 51... Rbb3 {[%clk 0:00:07.7]} 52. h6+
{[%clk 0:00:08.6]} 52... Kf7 {[%clk 0:00:08.3]} 53. Kh4 {[%clk 0:00:07.8]} 53...
Rxg3 {[%clk 0:00:09.2]} 54. Rc6 {[%clk 0:00:07.9]} 54... Rh3+ {[%clk 0:00:08.9]}
55. Kg5 {[%clk 0:00:08.4]} 55... Rbg3+ {[%clk 0:00:08.9]} 56. Kf5 {[%clk
0:00:09.1]} 56... Rc3 {[%clk 0:00:08.3]} 57. Ra6 {[%clk 0:00:06.8]} 57... Rh5+
{[%clk 0:00:08.4]} 58. Kg4 {[%clk 0:00:07.1]} 58... Rb5 {[%clk 0:00:08.8]} 59.
Ra7 {[%clk 0:00:04.9]} 59... Rb4+ {[%clk 0:00:08.3]} 60. Kf5 {[%clk 0:00:03.9]}
60... Rc5# {[%clk 0:00:09.2]} 0-1

[Event "Early-Titled-Tuesday-Blitz-January-30-2024"]
[Site "Chess.com"]
[Date "2024.01.30"]
[Round "10"]
[White "Matibar"]
[Black "K_A_S_T_O_R"]
[Result "0-1"]
[WhiteElo "2814"]
[BlackElo "2927"]
[TimeControl "180+1"]
[EndTime "10:02:36 PST"]
[Termination "K_A_S_T_O_R won by resignation"]

1. e4 {[%clk 0:03:00.9]} 1... c5 {[%clk 0:02:57.5]} 2. Nf3 {[%clk 0:03:01]} 2...
d6 {[%clk 0:02:57.9]} 3. Bb5+ {[%clk 0:03:00]} 3... Nc6 {[%clk 0:02:57.3]} 4.
O-O {[%clk 0:02:58.5]} 4... Bd7 {[%clk 0:02:57.5]} 5. Re1 {[%clk 0:02:54.1]}
5... Nf6 {[%clk 0:02:57.9]} 6. c3 {[%clk 0:02:53.3]} 6... a6 {[%clk 0:02:57.9]}
7. Bc4 {[%clk 0:02:53.6]} 7... Bg4 {[%clk 0:02:47.5]} 8. d4 {[%clk 0:02:34]}
8... e6 {[%clk 0:02:24.7]} 9. d5 {[%clk 0:02:22.4]} 9... Bxf3 {[%clk 0:02:17]}
10. gxf3 {[%clk 0:02:20.8]} 10... Ne5 {[%clk 0:02:15]} 11. Bf1 {[%clk
0:02:19.1]} 11... exd5 {[%clk 0:02:06.1]} 12. f4 {[%clk 0:02:07.7]} 12... Ng6
{[%clk 0:02:05.5]} 13. exd5+ {[%clk 0:02:05.8]} 13... Be7 {[%clk 0:02:03.9]} 14.
c4 {[%clk 0:01:44.3]} 14... O-O {[%clk 0:02:02]} 15. Qf3 {[%clk 0:01:42.6]}
15... Re8 {[%clk 0:01:55.2]} 16. Nc3 {[%clk 0:01:42.5]} 16... Bf8 {[%clk
0:01:49]} 17. Bd2 {[%clk 0:01:42.8]} 17... Qd7 {[%clk 0:01:44]} 18. Bh3 {[%clk
0:01:39.9]} 18... Qc7 {[%clk 0:01:42.4]} 19. b3 {[%clk 0:01:34.4]} 19... Rxe1+
{[%clk 0:01:34]} 20. Rxe1 {[%clk 0:01:33.3]} 20... Re8 {[%clk 0:01:34.6]} 21.
Rxe8 {[%clk 0:01:32.9]} 21... Nxe8 {[%clk 0:01:35.2]} 22. Qg4 {[%clk 0:01:29.9]}
22... Ne7 {[%clk 0:01:32.7]} 23. Qd7 {[%clk 0:00:57.9]} 23... Qxd7 {[%clk
0:01:31.9]} 24. Bxd7 {[%clk 0:00:58.8]} 24... Nf6 {[%clk 0:01:31]} 25. Bh3
{[%clk 0:00:59.1]} 25... g6 {[%clk 0:01:26.7]} 26. f3 {[%clk 0:00:59.6]} 26...
Bg7 {[%clk 0:01:06]} 27. Ne4 {[%clk 0:00:59.4]} 27... Nxe4 {[%clk 0:01:00.7]}
28. fxe4 {[%clk 0:00:59.4]} 28... f5 {[%clk 0:00:59.9]} 29. exf5 {[%clk
0:00:46]} 29... Nxf5 {[%clk 0:00:59.2]} 30. Kf2 {[%clk 0:00:46.1]} 30... Bd4+
{[%clk 0:00:53.1]} 31. Kf3 {[%clk 0:00:46.1]} 31... Kf7 {[%clk 0:00:53.5]} 32.
Ke4 {[%clk 0:00:46.4]} 32... Ng7 {[%clk 0:00:41.4]} 33. Bc8 {[%clk 0:00:43.6]}
33... b6 {[%clk 0:00:36]} 34. Bxa6 {[%clk 0:00:43.3]} 34... Bg1 {[%clk
0:00:36.1]} 35. h3 {[%clk 0:00:42.9]} 35... Nf5 {[%clk 0:00:35.9]} 36. Bc8
{[%clk 0:00:41.6]} 36... Nd4 {[%clk 0:00:35.9]} 37. b4 {[%clk 0:00:32.9]} 37...
cxb4 {[%clk 0:00:29.3]} 38. Bxb4 {[%clk 0:00:33]} 38... Ke7 {[%clk 0:00:29.7]}
39. Bc3 {[%clk 0:00:32.8]} 39... Ne2 {[%clk 0:00:26.9]} 40. Bb2 {[%clk
0:00:32.9]} 40... Bh2 {[%clk 0:00:22.8]} 41. Bg4 {[%clk 0:00:26.5]} 41... Nxf4
{[%clk 0:00:20.7]} 42. Bd4 {[%clk 0:00:27.1]} 42... h5 {[%clk 0:00:20.4]} 43.
Bc8 {[%clk 0:00:22.4]} 43... Kd8 {[%clk 0:00:20.4]} 44. Be6 {[%clk 0:00:22.7]}
44... Kc7 {[%clk 0:00:20.6]} 45. h4 {[%clk 0:00:16.9]} 45... Bg3 {[%clk
0:00:19.3]} 46. Bf6 {[%clk 0:00:17.1]} 46... Ng2 {[%clk 0:00:15.7]} 47. Kf3
{[%clk 0:00:16.1]} 47... Bxh4 {[%clk 0:00:16.3]} 48. Bg7 {[%clk 0:00:13.7]}
48... Ne1+ {[%clk 0:00:16.4]} 49. Ke2 {[%clk 0:00:14]} 49... g5 {[%clk
0:00:16.9]} 50. Bf7 {[%clk 0:00:13.5]} 50... Ng2 {[%clk 0:00:17]} 51. Kf3 {[%clk
0:00:12.4]} 51... Nf4 {[%clk 0:00:17.4]} 52. Bh6 {[%clk 0:00:11.1]} 52... Kd7
{[%clk 0:00:16.8]} 53. Ke4 {[%clk 0:00:09.4]} 53... Ke7 {[%clk 0:00:17.1]} 54.
Bg8 {[%clk 0:00:09.9]} 54... Kf6 {[%clk 0:00:17.4]} 55. a4 {[%clk 0:00:08.8]}
55... Ng6 {[%clk 0:00:16.9]} 56. Bh7 {[%clk 0:00:08.1]} 56... g4 {[%clk
0:00:14.7]} 57. Bxg6 {[%clk 0:00:08.2]} 57... Kxg6 {[%clk 0:00:14.7]} 58. Bf4
{[%clk 0:00:09.1]} 58... Be7 {[%clk 0:00:15]} 59. c5 {[%clk 0:00:09]} 59... dxc5
{[%clk 0:00:14.4]} 60. d6 {[%clk 0:00:09.5]} 60... Bd8 {[%clk 0:00:14.7]} 61.
Kd5 {[%clk 0:00:09.3]} 61... Kf5 {[%clk 0:00:15]} 62. Bg3 {[%clk 0:00:08.3]}
62... h4 {[%clk 0:00:15.5]} 0-1

[Event "Early-Titled-Tuesday-Blitz-January-30-2024"]
[Site "Chess.com"]
[Date "2024.01.30"]
[Round "10"]
[White "GoValya"]
[Black "emeli_chess"]
[Result "0-1"]
[WhiteElo "2318"]
[BlackElo "2468"]
[TimeControl "180+1"]
[EndTime "10:02:36 PST"]
[Termination "emeli_chess won by resignation"]

1. d4 {[%clk 0:03:00.9]} 1... Nf6 {[%clk 0:02:59.3]} 2. g3 {[%clk 0:03:00.8]}
2... d5 {[%clk 0:02:57.7]} 3. Bg2 {[%clk 0:03:01]} 3... Bg4 {[%clk 0:02:57.1]}
4. h3 {[%clk 0:02:58.1]} 4... Bh5 {[%clk 0:02:52.5]} 5. c4 {[%clk 0:02:58.1]}
5... e6 {[%clk 0:02:47]} 6. Qb3 {[%clk 0:02:51]} 6... b6 {[%clk 0:02:42.8]} 7.
cxd5 {[%clk 0:02:48.6]} 7... exd5 {[%clk 0:02:40.4]} 8. Nc3 {[%clk 0:02:48]}
8... c6 {[%clk 0:02:37]} 9. Bg5 {[%clk 0:02:36.1]} 9... Be7 {[%clk 0:02:11.2]}
10. Bxf6 {[%clk 0:02:10]} 10... Bxf6 {[%clk 0:02:10.9]} 11. Nxd5 {[%clk
0:02:04.9]} 11... Bxd4 {[%clk 0:01:58.7]} 12. Rd1 {[%clk 0:01:27.6]} 12... Bc5
{[%clk 0:01:44.5]} 13. Nf4 {[%clk 0:01:05.1]} 13... Qg5 {[%clk 0:01:36.5]} 14.
Nxh5 {[%clk 0:00:36.4]} 14... Qxh5 {[%clk 0:01:35.4]} 15. Nf3 {[%clk 0:00:37]}
15... O-O {[%clk 0:01:34.6]} 16. O-O {[%clk 0:00:37.6]} 16... Qg6 {[%clk
0:01:26]} 17. Ne5 {[%clk 0:00:31.4]} 17... Qf5 {[%clk 0:01:16.6]} 18. Nxc6
{[%clk 0:00:18.7]} 18... Nxc6 {[%clk 0:01:16]} 19. Bxc6 {[%clk 0:00:19.6]} 19...
Rad8 {[%clk 0:01:14.5]} 20. Bg2 {[%clk 0:00:19.2]} 20... Rxd1 {[%clk 0:01:12]}
21. Qxd1 {[%clk 0:00:20.1]} 21... Qe5 {[%clk 0:01:09.8]} 22. Qb3 {[%clk
0:00:15.7]} 22... Qxe2 {[%clk 0:01:08.1]} 23. Bf3 {[%clk 0:00:14.4]} 23... Qe5
{[%clk 0:01:04.8]} 24. Kg2 {[%clk 0:00:15]} 24... g6 {[%clk 0:01:01]} 25. Rd1
{[%clk 0:00:15.1]} 25... Re8 {[%clk 0:00:55.5]} 26. Rd7 {[%clk 0:00:14.3]} 26...
Re7 {[%clk 0:00:55.7]} 27. Rd8+ {[%clk 0:00:12.7]} 27... Kg7 {[%clk 0:00:54.4]}
28. Qd3 {[%clk 0:00:12.9]} 28... h5 {[%clk 0:00:40.7]} 29. b3 {[%clk 0:00:12.4]}
29... Qb2 {[%clk 0:00:36]} 30. Qd2 {[%clk 0:00:11.2]} 30... Qxd2 {[%clk
0:00:35]} 31. Rxd2 {[%clk 0:00:12.1]} 31... a5 {[%clk 0:00:33.3]} 32. h4 {[%clk
0:00:12.5]} 32... Re1 {[%clk 0:00:32.5]} 33. Re2 {[%clk 0:00:12.6]} 33... Rc1
{[%clk 0:00:31.6]} 34. Rd2 {[%clk 0:00:12.5]} 34... Kf6 {[%clk 0:00:31.2]} 35.
Re2 {[%clk 0:00:12.6]} 35... Kf5 {[%clk 0:00:26.5]} 36. Bd5 {[%clk 0:00:12.7]}
36... Kf6 {[%clk 0:00:22.7]} 37. Re4 {[%clk 0:00:12.7]} 37... Kg7 {[%clk
0:00:19]} 38. Rf4 {[%clk 0:00:12.6]} 38... f5 {[%clk 0:00:19.1]} 39. Bc4 {[%clk
0:00:12.4]} 39... Rc2 {[%clk 0:00:16.2]} 40. Rf3 {[%clk 0:00:13]} 40... Kf6
{[%clk 0:00:15.4]} 41. Kg1 {[%clk 0:00:12.3]} 41... Rxa2 {[%clk 0:00:14.1]} 42.
Kg2 {[%clk 0:00:11.2]} 42... Rc2 {[%clk 0:00:12.6]} 43. Kg1 {[%clk 0:00:10.2]}
43... a4 {[%clk 0:00:12.5]} 44. Kg2 {[%clk 0:00:10]} 44... a3 {[%clk 0:00:12.5]}
45. Bd3 {[%clk 0:00:08.6]} 45... Rb2 {[%clk 0:00:07.6]} 46. b4 {[%clk
0:00:07.2]} 46... Bxf2 {[%clk 0:00:05.3]} 47. Rxf2 {[%clk 0:00:06.8]} 47...
Rxf2+ {[%clk 0:00:05.4]} 48. Kxf2 {[%clk 0:00:07.3]} 48... a2 {[%clk 0:00:05.8]}
49. Kf3 {[%clk 0:00:07.5]} 49... a1=Q {[%clk 0:00:06.2]} 50. Be2 {[%clk
0:00:08.4]} 50... Qc3+ {[%clk 0:00:06.2]} 51. Kf2 {[%clk 0:00:08.9]} 51... Qxb4
{[%clk 0:00:06.4]} 52. Bf3 {[%clk 0:00:09.3]} 52... Qd4+ {[%clk 0:00:06.5]} 53.
Kg2 {[%clk 0:00:09.3]} 53... b5 {[%clk 0:00:06.8]} 0-1

[Event "Early-Titled-Tuesday-Blitz-January-30-2024"]
[Site "Chess.com"]
[Date "2024.01.30"]
[Round "10"]
[White "amanjazu"]
[Black "hakanazeri2"]
[Result "0-1"]
[WhiteElo "2449"]
[BlackElo "2621"]
[TimeControl "180+1"]
[EndTime "10:02:38 PST"]
[Termination "hakanazeri2 won by resignation"]

1. g3 {[%clk 0:02:55.5]} 1... d5 {[%clk 0:02:59.6]} 2. Bg2 {[%clk 0:02:53.7]}
2... c6 {[%clk 0:03:00.5]} 3. f4 {[%clk 0:02:54.1]} 3... Nf6 {[%clk 0:02:58.7]}
4. Nf3 {[%clk 0:02:54.1]} 4... g6 {[%clk 0:02:55.8]} 5. O-O {[%clk 0:02:54]}
5... Bg7 {[%clk 0:02:53.4]} 6. d3 {[%clk 0:02:54.9]} 6... O-O {[%clk 0:02:52.3]}
7. Nc3 {[%clk 0:02:55.1]} 7... Qb6+ {[%clk 0:02:43.7]} 8. Kh1 {[%clk 0:02:53.7]}
8... Ng4 {[%clk 0:02:41.9]} 9. d4 {[%clk 0:02:53.4]} 9... Bf5 {[%clk 0:02:35.7]}
10. Nh4 {[%clk 0:02:45.6]} 10... Qxd4 {[%clk 0:02:08.9]} 11. Nxf5 {[%clk
0:02:41.8]} 11... gxf5 {[%clk 0:02:03.1]} 12. Qe1 {[%clk 0:02:21.5]} 12... e6
{[%clk 0:01:50.9]} 13. e3 {[%clk 0:02:18.8]} 13... Qb6 {[%clk 0:01:28.2]} 14. h3
{[%clk 0:02:16.7]} 14... Nf6 {[%clk 0:01:27]} 15. Bf3 {[%clk 0:02:16.9]} 15...
h5 {[%clk 0:01:12.3]} 16. Qe2 {[%clk 0:02:12.3]} 16... Nbd7 {[%clk 0:01:01.2]}
17. Bxh5 {[%clk 0:02:08.3]} 17... Nxh5 {[%clk 0:00:52.2]} 18. Qxh5 {[%clk
0:02:09.2]} 18... Nf6 {[%clk 0:00:52.5]} 19. Qh4 {[%clk 0:02:01.9]} 19... Rfd8
{[%clk 0:00:46]} 20. g4 {[%clk 0:02:00]} 20... fxg4 {[%clk 0:00:45.8]} 21. hxg4
{[%clk 0:01:55.3]} 21... d4 {[%clk 0:00:44.8]} 22. g5 {[%clk 0:01:50.1]} 22...
Nd5 {[%clk 0:00:20]} 23. Ne4 {[%clk 0:01:47.3]} 23... Nxe3 {[%clk 0:00:20.1]}
24. Nf6+ {[%clk 0:01:02.5]} 24... Kf8 {[%clk 0:00:16.5]} 25. Bxe3 {[%clk
0:00:47.3]} 25... dxe3 {[%clk 0:00:16.9]} 26. f5 {[%clk 0:00:47.8]} 26... Qd4
{[%clk 0:00:10.5]} 27. Qh5 {[%clk 0:00:20.4]} 27... Bxf6 {[%clk 0:00:06.2]} 28.
gxf6 {[%clk 0:00:18.8]} 28... Qxf6 {[%clk 0:00:06.7]} 29. fxe6 {[%clk
0:00:18.8]} 29... Qxe6 {[%clk 0:00:07.6]} 30. Rae1 {[%clk 0:00:15.6]} 30... Rd5
{[%clk 0:00:07.6]} 31. Qh8+ {[%clk 0:00:14.5]} 31... Ke7 {[%clk 0:00:08]} 32.
Qh4+ {[%clk 0:00:12.1]} 32... Kd7 {[%clk 0:00:07.9]} 33. Rf6 {[%clk 0:00:11.8]}
33... Qe7 {[%clk 0:00:04.4]} 34. Qh3+ {[%clk 0:00:10.4]} 34... Kc7 {[%clk
0:00:04.6]} 35. Qf3 {[%clk 0:00:10.8]} 35... Rh8+ {[%clk 0:00:04.1]} 36. Kg1
{[%clk 0:00:09.5]} 36... Rg5+ {[%clk 0:00:04]} 37. Kf1 {[%clk 0:00:10]} 37...
Rh1+ {[%clk 0:00:04.3]} 38. Ke2 {[%clk 0:00:08.5]} 38... Rxe1+ {[%clk
0:00:04.4]} 39. Kxe1 {[%clk 0:00:09.4]} 39... e2 {[%clk 0:00:04.6]} 40. Rxf7
{[%clk 0:00:09.3]} 40... Rg1+ {[%clk 0:00:04.5]} 41. Kd2 {[%clk 0:00:08.7]}
41... e1=Q+ {[%clk 0:00:04.7]} 42. Kd3 {[%clk 0:00:09]} 42... Rg6 {[%clk
0:00:02.9]} 43. Qf4+ {[%clk 0:00:07.5]} 43... Rd6+ {[%clk 0:00:02.6]} 44. Kc4
{[%clk 0:00:07.7]} 44... Qe6+ {[%clk 0:00:02.7]} 45. Kc3 {[%clk 0:00:07.6]}
45... Q6xf7 {[%clk 0:00:02.1]} 46. Qa4 {[%clk 0:00:08.5]} 46... Qf3+ {[%clk
0:00:01.6]} 47. Kb4 {[%clk 0:00:09.4]} 47... Qfe4+ {[%clk 0:00:02.4]} 48. c4
{[%clk 0:00:09.8]} 48... Rd4+ {[%clk 0:00:02.9]} 49. Kb3 {[%clk 0:00:10.1]}
49... Rd3+ {[%clk 0:00:03.6]} 50. Kc2 {[%clk 0:00:09.2]} 50... Qe2+ {[%clk
0:00:04.4]} 51. Kc1 {[%clk 0:00:08.8]} 51... Q7e3+ {[%clk 0:00:04.3]} 0-1

[Event "Early-Titled-Tuesday-Blitz-January-30-2024"]
[Site "Chess.com"]
[Date "2024.01.30"]
[Round "10"]
[White "Gabrielian_Artur"]
[Black "Sam_ChessMood"]
[Result "0-1"]
[WhiteElo "2781"]
[BlackElo "2912"]
[TimeControl "180+1"]
[EndTime "10:02:39 PST"]
[Termination "Sam_ChessMood won on time"]

1. e4 {[%clk 0:03:00.9]} 1... c5 {[%clk 0:02:59.3]} 2. Nf3 {[%clk 0:03:00.5]}
2... d6 {[%clk 0:02:59.8]} 3. d4 {[%clk 0:03:00.6]} 3... cxd4 {[%clk 0:03:00.7]}
4. Nxd4 {[%clk 0:03:01]} 4... Nf6 {[%clk 0:03:01]} 5. Nc3 {[%clk 0:03:01.4]}
5... a6 {[%clk 0:03:00.9]} 6. Bc4 {[%clk 0:03:01.6]} 6... e6 {[%clk 0:03:00.7]}
7. Be3 {[%clk 0:03:01.1]} 7... b5 {[%clk 0:02:57.1]} 8. Bb3 {[%clk 0:03:01]}
8... Be7 {[%clk 0:02:56.5]} 9. f3 {[%clk 0:02:56.8]} 9... O-O {[%clk 0:02:49.5]}
10. a3 {[%clk 0:02:56.3]} 10... Bd7 {[%clk 0:02:33.6]} 11. Qd2 {[%clk
0:02:55.1]} 11... Nc6 {[%clk 0:02:33.8]} 12. O-O-O {[%clk 0:02:52.3]} 12... Na5
{[%clk 0:02:31]} 13. g4 {[%clk 0:02:47.3]} 13... Rc8 {[%clk 0:02:30.1]} 14. Kb1
{[%clk 0:02:44.7]} 14... Nc4 {[%clk 0:02:26.3]} 15. Bxc4 {[%clk 0:02:43.3]}
15... Rxc4 {[%clk 0:02:27.2]} 16. h4 {[%clk 0:02:34.2]} 16... Qb8 {[%clk
0:02:26.5]} 17. h5 {[%clk 0:02:27]} 17... b4 {[%clk 0:02:17.6]} 18. axb4 {[%clk
0:02:26.8]} 18... Rxb4 {[%clk 0:02:17.6]} 19. Nb3 {[%clk 0:02:16.5]} 19... a5
{[%clk 0:02:03.1]} 20. g5 {[%clk 0:02:15]} 20... Ne8 {[%clk 0:02:03]} 21. h6
{[%clk 0:02:00.5]} 21... g6 {[%clk 0:02:01.9]} 22. Bc5 {[%clk 0:01:51.6]} 22...
dxc5 {[%clk 0:01:33.8]} 23. Qxd7 {[%clk 0:01:51]} 23... Bxg5 {[%clk 0:01:34.1]}
24. Na2 {[%clk 0:01:23.6]} 24... Rb7 {[%clk 0:01:11.7]} 25. Qa4 {[%clk 0:01:21]}
25... Nd6 {[%clk 0:01:10.7]} 26. e5 {[%clk 0:01:12.6]} 26... c4 {[%clk
0:00:54.4]} 27. exd6 {[%clk 0:00:42]} 27... cxb3 {[%clk 0:00:54]} 28. cxb3
{[%clk 0:00:42.3]} 28... Bf6 {[%clk 0:00:35.1]} 29. Nc1 {[%clk 0:00:38.9]} 29...
Rb4 {[%clk 0:00:30.8]} 30. Qxa5 {[%clk 0:00:27.6]} 30... Rd8 {[%clk 0:00:28.3]}
31. d7 {[%clk 0:00:20.3]} 31... Rb7 {[%clk 0:00:26]} 32. Qa4 {[%clk 0:00:15.8]}
32... Qe5 {[%clk 0:00:16.3]} 33. Rd2 {[%clk 0:00:14.2]} 33... Rbxd7 {[%clk
0:00:15.6]} 34. Rc2 {[%clk 0:00:11.7]} 34... Qf5 {[%clk 0:00:13.4]} 35. Qe4
{[%clk 0:00:10.9]} 35... Qa5 {[%clk 0:00:11.3]} 36. Qa4 {[%clk 0:00:09.9]} 36...
Qd5 {[%clk 0:00:10.3]} 37. Qe4 {[%clk 0:00:08.2]} 37... Qa5 {[%clk 0:00:08.8]}
38. Qa4 {[%clk 0:00:08.1]} 38... Qb6 {[%clk 0:00:08]} 39. Re1 {[%clk 0:00:07.1]}
39... Ra7 {[%clk 0:00:06.9]} 40. Qc6 {[%clk 0:00:04.4]} 40... Qa5 {[%clk
0:00:07.2]} 41. Qa4 {[%clk 0:00:01.2]} 41... Qxe1 {[%clk 0:00:06.1]} 42. Qxa7
{[%clk 0:00:01.3]} 42... Qe5 {[%clk 0:00:05.7]} 43. Qc7 {[%clk 0:00:01.2]} 43...
Qxc7 {[%clk 0:00:05.2]} 44. Rxc7 {[%clk 0:00:01.3]} 44... Bg5 {[%clk 0:00:05.7]}
45. b4 {[%clk 0:00:01.9]} 45... Bxh6 {[%clk 0:00:06]} 46. Nb3 {[%clk 0:00:01.9]}
46... Bf4 {[%clk 0:00:06]} 47. Rc4 {[%clk 0:00:01.5]} 47... g5 {[%clk
0:00:06.5]} 48. b5 {[%clk 0:00:01.9]} 48... h5 {[%clk 0:00:06.7]} 49. Nd4 {[%clk
0:00:01.5]} 49... h4 {[%clk 0:00:06.4]} 50. Nc6 {[%clk 0:00:01.9]} 50... Rd1+
{[%clk 0:00:05.6]} 51. Ka2 {[%clk 0:00:01.8]} 51... h3 {[%clk 0:00:05.5]} 52. b6
{[%clk 0:00:02.2]} 52... Rd7 {[%clk 0:00:05.2]} 0-1